[Event "*** Titled Tuesday Blitz"]
[Site "Chess.com"]
[Date "2020.11.24"]
[Round "1"]
[White "TST2014"]
[Black "halldorgretar"]
[Result "1-0"]
[WhiteElo "2521"]
[BlackElo "2168"]
[TimeControl "180+1"]
[EndTime "10:21:39 PST"]
[Termination "TST2014 won on time"]

1. d4 {[%clk 0:03:00.9]} 1... Nf6 {[%clk 0:02:58.6]} 2. c4 {[%clk 0:03:00.6]}
2... g6 {[%clk 0:02:58]} 3. Nc3 {[%clk 0:02:59.9]} 3... d5 {[%clk 0:02:57.9]} 4.
Nf3 {[%clk 0:02:59.1]} 4... Bg7 {[%clk 0:02:56.8]} 5. Bg5 {[%clk 0:02:58.8]}
5... Ne4 {[%clk 0:02:52.4]} 6. Bh4 {[%clk 0:02:58.2]} 6... Nxc3 {[%clk
0:02:50.2]} 7. bxc3 {[%clk 0:02:59.1]} 7... c5 {[%clk 0:02:46]} 8. e3 {[%clk
0:02:56.8]} 8... Qa5 {[%clk 0:02:25.3]} 9. Qb3 {[%clk 0:02:38.5]} 9... cxd4
{[%clk 0:02:12.1]} 10. exd4 {[%clk 0:02:35.5]} 10... O-O {[%clk 0:00:57.6]} 11.
cxd5 {[%clk 0:02:28.6]} 11... e6 {[%clk 0:00:30.4]} 12. d6 {[%clk 0:02:08.9]}
12... Nc6 {[%clk 0:00:25.7]} 13. Rd1 {[%clk 0:02:04.1]} 13... b6 {[%clk
0:00:13.9]} 14. Bb5 {[%clk 0:02:00]} 14... Bd7 {[%clk 0:00:13.3]} 15. O-O {[%clk
0:01:51.5]} 15... Rac8 {[%clk 0:00:13.5]} 16. c4 {[%clk 0:01:43]} 16... a6
{[%clk 0:00:13.7]} 17. Bxc6 {[%clk 0:01:41.6]} 17... Rxc6 {[%clk 0:00:13.4]} 18.
Ne5 {[%clk 0:01:41.5]} 18... Rxd6 {[%clk 0:00:12.7]} 19. Be7 {[%clk 0:01:40.2]}
19... Bxe5 {[%clk 0:00:10.4]} 20. Bxf8 {[%clk 0:01:38]} 20... Rxd4 {[%clk
0:00:10.1]} 21. Rxd4 {[%clk 0:01:36.4]} 21... Bxd4 {[%clk 0:00:10]} 22. Bh6
{[%clk 0:01:32.4]} 22... Bc6 {[%clk 0:00:08.3]} 23. Qd3 {[%clk 0:01:30.1]} 23...
Qc5 {[%clk 0:00:07]} 24. Be3 {[%clk 0:01:27.8]} 24... e5 {[%clk 0:00:06.9]} 25.
Bxd4 {[%clk 0:01:27.2]} 25... exd4 {[%clk 0:00:07.1]} 26. Rd1 {[%clk 0:01:25.7]}
26... Qg5 {[%clk 0:00:07.6]} 27. g3 {[%clk 0:01:24.7]} 27... Qg4 {[%clk
0:00:06.2]} 28. Re1 {[%clk 0:00:51]} 28... Kg7 {[%clk 0:00:02]} 29. Qe2 {[%clk
0:00:41.2]} 1-0

[Event "*** Titled Tuesday Blitz"]
[Site "Chess.com"]
[Date "2020.11.24"]
[Round "1"]
[White "Sergienko_Sergey"]
[Black "Anna_ChessMate"]
[Result "1-0"]
[WhiteElo "2335"]
[BlackElo "2600"]
[TimeControl "180+1"]
[EndTime "10:21:40 PST"]
[Termination "Sergienko_Sergey won by resignation"]

1. e4 {[%clk 0:02:54.9]} 1... c6 {[%clk 0:02:59.6]} 2. Nc3 {[%clk 0:02:53.8]}
2... d5 {[%clk 0:02:58.8]} 3. Nf3 {[%clk 0:02:53]} 3... Bg4 {[%clk 0:02:57.7]}
4. h3 {[%clk 0:02:52.5]} 4... Bxf3 {[%clk 0:02:57.3]} 5. Qxf3 {[%clk 0:02:51.6]}
5... Nf6 {[%clk 0:02:57.8]} 6. d3 {[%clk 0:02:50.9]} 6... e6 {[%clk 0:02:57]} 7.
a3 {[%clk 0:02:50]} 7... Nbd7 {[%clk 0:02:56.7]} 8. g3 {[%clk 0:02:48.4]} 8...
Bc5 {[%clk 0:02:56.7]} 9. Bg2 {[%clk 0:02:47.8]} 9... O-O {[%clk 0:02:57.1]} 10.
O-O {[%clk 0:02:46.9]} 10... Qc7 {[%clk 0:02:38.4]} 11. Kh1 {[%clk 0:02:39.9]}
11... Rfe8 {[%clk 0:02:16.5]} 12. Qe2 {[%clk 0:02:38.3]} 12... Bd4 {[%clk
0:02:08.4]} 13. Bd2 {[%clk 0:02:31.5]} 13... e5 {[%clk 0:01:54.4]} 14. Rab1
{[%clk 0:02:12.6]} 14... Nc5 {[%clk 0:01:33.9]} 15. Nd1 {[%clk 0:01:55.7]} 15...
Ne6 {[%clk 0:01:23.8]} 16. c3 {[%clk 0:01:42.4]} 16... Bc5 {[%clk 0:01:21.6]}
17. Ne3 {[%clk 0:01:39.6]} 17... d4 {[%clk 0:01:14.6]} 18. Nf5 {[%clk
0:01:37.3]} 18... dxc3 {[%clk 0:01:08.8]} 19. bxc3 {[%clk 0:01:34]} 19... Bxa3
{[%clk 0:01:08.7]} 20. f4 {[%clk 0:01:20.6]} 20... exf4 {[%clk 0:00:55.7]} 21.
gxf4 {[%clk 0:01:20.3]} 21... Rad8 {[%clk 0:00:53.6]} 22. e5 {[%clk 0:01:10.3]}
22... Nd5 {[%clk 0:00:20.5]} 23. d4 {[%clk 0:01:07.5]} 23... g6 {[%clk 0:00:16]}
24. Nh6+ {[%clk 0:01:07.4]} 24... Kg7 {[%clk 0:00:15.1]} 25. f5 {[%clk
0:01:07.1]} 25... Nf8 {[%clk 0:00:15.7]} 26. fxg6 {[%clk 0:01:05.5]} 26... fxg6
{[%clk 0:00:16.2]} 27. Rf7+ {[%clk 0:01:04.1]} 27... Qxf7 {[%clk 0:00:16.6]} 28.
Nxf7 {[%clk 0:01:04.2]} 28... Kxf7 {[%clk 0:00:17.5]} 29. Rxb7+ {[%clk
0:01:04.1]} 29... Kg8 {[%clk 0:00:18.1]} 30. Qf1 {[%clk 0:00:57.5]} 30... Be7
{[%clk 0:00:18.3]} 31. c4 {[%clk 0:00:54.6]} 31... Nb6 {[%clk 0:00:11.9]} 32. d5
{[%clk 0:00:53.2]} 32... cxd5 {[%clk 0:00:11]} 33. cxd5 {[%clk 0:00:53.3]} 33...
Nfd7 {[%clk 0:00:10.6]} 34. e6 {[%clk 0:00:50.3]} 34... Nc5 {[%clk 0:00:10.1]}
35. Qf7+ {[%clk 0:00:48.5]} 35... Kh8 {[%clk 0:00:07.9]} 36. Bc3+ {[%clk
0:00:48.4]} 1-0

[Event "*** Titled Tuesday Blitz"]
[Site "Chess.com"]
[Date "2020.11.24"]
[Round "1"]
[White "Grandmaster2B"]
[Black "pirulillo"]
[Result "1-0"]
[WhiteElo "2503"]
[BlackElo "2099"]
[TimeControl "180+1"]
[EndTime "10:21:40 PST"]
[Termination "Grandmaster2B won by checkmate"]

1. e4 {[%clk 0:03:00.9]} 1... c5 {[%clk 0:02:57.6]} 2. Nf3 {[%clk 0:02:59.9]}
2... e6 {[%clk 0:02:56]} 3. d4 {[%clk 0:02:59]} 3... cxd4 {[%clk 0:02:56.9]} 4.
Nxd4 {[%clk 0:02:59.8]} 4... Nf6 {[%clk 0:02:56.4]} 5. Nc3 {[%clk 0:02:59.6]}
5... d6 {[%clk 0:02:57]} 6. Be3 {[%clk 0:02:58.4]} 6... a6 {[%clk 0:02:56.7]} 7.
f3 {[%clk 0:02:58.9]} 7... b5 {[%clk 0:02:55.1]} 8. Qd2 {[%clk 0:02:59.5]} 8...
Bb7 {[%clk 0:02:55.3]} 9. O-O-O {[%clk 0:02:59.1]} 9... Nbd7 {[%clk 0:02:55.6]}
10. g4 {[%clk 0:02:57.5]} 10... Nb6 {[%clk 0:02:55.4]} 11. Qf2 {[%clk
0:02:46.5]} 11... Nfd7 {[%clk 0:02:55.3]} 12. h4 {[%clk 0:02:39.3]} 12... Rc8
{[%clk 0:02:54.6]} 13. Nce2 {[%clk 0:02:10.7]} 13... Nc4 {[%clk 0:02:50.8]} 14.
Ng3 {[%clk 0:02:04.4]} 14... Be7 {[%clk 0:02:49.4]} 15. Bxc4 {[%clk 0:01:53.9]}
15... Rxc4 {[%clk 0:02:48.1]} 16. g5 {[%clk 0:01:49.1]} 16... Qa5 {[%clk
0:02:30.4]} 17. Kb1 {[%clk 0:01:47.2]} 17... d5 {[%clk 0:02:27.4]} 18. Nb3
{[%clk 0:01:36.1]} 18... Qc7 {[%clk 0:02:24.3]} 19. exd5 {[%clk 0:01:31.6]}
19... Bxd5 {[%clk 0:02:25.2]} 20. Nf5 {[%clk 0:01:29.4]} 20... exf5 {[%clk
0:02:19.3]} 21. Rxd5 {[%clk 0:01:28.3]} 21... O-O {[%clk 0:02:19.9]} 22. Rhd1
{[%clk 0:01:22.3]} 22... Nb8 {[%clk 0:02:13.1]} 23. Rxf5 {[%clk 0:01:03.9]}
23... Rc8 {[%clk 0:02:10.6]} 24. Rd2 {[%clk 0:00:45.2]} 24... Bf8 {[%clk
0:02:03.5]} 25. Rfd5 {[%clk 0:00:40.5]} 25... a5 {[%clk 0:02:03.4]} 26. Bb6
{[%clk 0:00:38.6]} 26... Qb7 {[%clk 0:02:01.6]} 27. Nxa5 {[%clk 0:00:38.4]}
27... Qa8 {[%clk 0:01:57]} 28. Nxc4 {[%clk 0:00:30.7]} 28... bxc4 {[%clk
0:01:57.9]} 29. Rd8 {[%clk 0:00:28.1]} 29... Nc6 {[%clk 0:01:58]} 30. Rxc8
{[%clk 0:00:24.5]} 30... Qxc8 {[%clk 0:01:58.9]} 31. Bc5 {[%clk 0:00:24.7]}
31... g6 {[%clk 0:01:48.8]} 32. Bxf8 {[%clk 0:00:23.4]} 32... Qxf8 {[%clk
0:01:48.5]} 33. Qb6 {[%clk 0:00:22.3]} 33... Qc8 {[%clk 0:01:46.1]} 34. a3
{[%clk 0:00:15]} 34... c3 {[%clk 0:01:45.3]} 35. Rd6 {[%clk 0:00:13.9]} 35...
Qf5 {[%clk 0:01:10.9]} 36. Qxc6 {[%clk 0:00:10.8]} 36... h5 {[%clk 0:01:08.7]}
37. Qe8+ {[%clk 0:00:06.9]} 37... Kh7 {[%clk 0:01:07.4]} 38. Rd8 {[%clk
0:00:07.8]} 38... Qe5 {[%clk 0:00:57.3]} 39. Qxe5 {[%clk 0:00:04.8]} 39... f6
{[%clk 0:00:56.4]} 40. Qxf6 {[%clk 0:00:05]} 40... cxb2 {[%clk 0:00:55.4]} 41.
Rh8# {[%clk 0:00:03.9]} 1-0

[Event "*** Titled Tuesday Blitz"]
[Site "Chess.com"]
[Date "2020.11.24"]
[Round "1"]
[White "Chuchofrio1"]
[Black "kingofthenil"]
[Result "1-0"]
[WhiteElo "2416"]
[BlackElo "2758"]
[TimeControl "180+1"]
[EndTime "10:21:43 PST"]
[Termination "Chuchofrio1 won on time"]

1. d4 {[%clk 0:03:00.6]} 1... Nf6 {[%clk 0:01:42.1]} 2. c4 {[%clk 0:02:58.7]}
2... c5 {[%clk 0:01:42.5]} 3. d5 {[%clk 0:02:58.4]} 3... e6 {[%clk 0:01:43.4]}
4. Nc3 {[%clk 0:02:57.8]} 4... exd5 {[%clk 0:01:44.3]} 5. cxd5 {[%clk
0:02:58.2]} 5... g6 {[%clk 0:01:44.9]} 6. e4 {[%clk 0:02:58.6]} 6... d6 {[%clk
0:01:45.1]} 7. f4 {[%clk 0:02:58.7]} 7... Bg7 {[%clk 0:01:44.6]} 8. Bb5+ {[%clk
0:02:58.5]} 8... Nfd7 {[%clk 0:01:45.2]} 9. Nf3 {[%clk 0:02:58.5]} 9... O-O
{[%clk 0:01:46.1]} 10. O-O {[%clk 0:02:58.3]} 10... a6 {[%clk 0:01:44.8]} 11.
Bd3 {[%clk 0:02:58]} 11... b5 {[%clk 0:01:44.5]} 12. Qe1 {[%clk 0:02:58.2]}
12... Re8 {[%clk 0:01:37.6]} 13. Qg3 {[%clk 0:02:57.7]} 13... Ra7 {[%clk
0:01:33]} 14. e5 {[%clk 0:02:45.2]} 14... dxe5 {[%clk 0:01:10.2]} 15. f5 {[%clk
0:02:45.3]} 15... e4 {[%clk 0:01:00.1]} 16. Nxe4 {[%clk 0:02:44.7]} 16... Ne5
{[%clk 0:00:55.5]} 17. Nxe5 {[%clk 0:02:12.7]} 17... Bxe5 {[%clk 0:00:51.2]} 18.
Bf4 {[%clk 0:02:09.9]} 18... Nd7 {[%clk 0:00:42.9]} 19. Rae1 {[%clk 0:01:54.9]}
19... c4 {[%clk 0:00:18.1]} 20. Bc2 {[%clk 0:01:30.7]} 20... Bxb2 {[%clk
0:00:17.8]} 21. fxg6 {[%clk 0:01:26.1]} 21... hxg6 {[%clk 0:00:18.3]} 22. Ng5
{[%clk 0:01:20.8]} 22... Rxe1 {[%clk 0:00:11.6]} 23. Rxe1 {[%clk 0:01:19.1]}
23... Bg7 {[%clk 0:00:12.1]} 24. Nxf7 {[%clk 0:01:13.8]} 24... Kxf7 {[%clk
0:00:08.9]} 25. Qxg6+ {[%clk 0:01:13.8]} 25... Kg8 {[%clk 0:00:05.5]} 26. Re8+
{[%clk 0:01:10.6]} 26... Qxe8 {[%clk 0:00:05.2]} 27. Qxe8+ {[%clk 0:01:10.6]}
27... Nf8 {[%clk 0:00:06.1]} 28. Qxc8 {[%clk 0:01:05.6]} 28... Rf7 {[%clk
0:00:07]} 29. Be3 {[%clk 0:00:56]} 29... Re7 {[%clk 0:00:07.1]} 30. Bc5 {[%clk
0:00:46.1]} 30... Rf7 {[%clk 0:00:02.1]} 31. Bf5 {[%clk 0:00:38.7]} 1-0

[Event "*** Titled Tuesday Blitz"]
[Site "Chess.com"]
[Date "2020.11.24"]
[Round "1"]
[White "Zhigalko_Sergei"]
[Black "SanchezKelvin"]
[Result "0-1"]
[WhiteElo "2899"]
[BlackElo "2467"]
[TimeControl "180+1"]
[EndTime "10:21:44 PST"]
[Termination "SanchezKelvin won on time"]

1. e4 {[%clk 0:02:57.7]} 1... c5 {[%clk 0:02:59.1]} 2. Nf3 {[%clk 0:02:54.8]}
2... d6 {[%clk 0:02:59.4]} 3. d4 {[%clk 0:02:54.8]} 3... cxd4 {[%clk 0:02:59.9]}
4. Qxd4 {[%clk 0:02:54.4]} 4... Nc6 {[%clk 0:02:58.5]} 5. Bb5 {[%clk 0:02:53.7]}
5... Qa5+ {[%clk 0:02:52.9]} 6. Nc3 {[%clk 0:02:53.5]} 6... Qxb5 {[%clk
0:02:52.2]} 7. Nxb5 {[%clk 0:02:53.9]} 7... Nxd4 {[%clk 0:02:52.3]} 8. Nfxd4
{[%clk 0:02:54.8]} 8... Kd8 {[%clk 0:02:52.7]} 9. c4 {[%clk 0:02:54.4]} 9... Bd7
{[%clk 0:02:52.3]} 10. Bd2 {[%clk 0:02:46.7]} 10... Bxb5 {[%clk 0:02:36.7]} 11.
Nxb5 {[%clk 0:02:28.3]} 11... a6 {[%clk 0:02:27.1]} 12. Ba5+ {[%clk 0:02:23.4]}
12... Kd7 {[%clk 0:02:25.8]} 13. Nc7 {[%clk 0:02:23.3]} 13... Rc8 {[%clk
0:02:17.5]} 14. Nd5 {[%clk 0:02:23.3]} 14... Ke8 {[%clk 0:01:52.4]} 15. Nc7+
{[%clk 0:02:19.9]} 15... Kd7 {[%clk 0:01:51.7]} 16. Nd5 {[%clk 0:02:20.6]} 16...
Ke8 {[%clk 0:01:51.7]} 17. Ke2 {[%clk 0:02:06]} 17... e6 {[%clk 0:01:39.8]} 18.
Nb6 {[%clk 0:02:02.5]} 18... Rc6 {[%clk 0:01:39.2]} 19. b4 {[%clk 0:01:40.7]}
19... Nf6 {[%clk 0:01:33.4]} 20. f3 {[%clk 0:01:26.9]} 20... Nd7 {[%clk
0:01:30.3]} 21. b5 {[%clk 0:00:45.6]} 21... Rc5 {[%clk 0:01:05.9]} 22. a4 {[%clk
0:00:29.4]} 22... Be7 {[%clk 0:00:57.6]} 23. Rhc1 {[%clk 0:00:23.5]} 23... Bd8
{[%clk 0:00:49]} 24. Nxd7 {[%clk 0:00:21.9]} 24... Kxd7 {[%clk 0:00:48.6]} 25.
Bb4 {[%clk 0:00:21.7]} 25... Rc8 {[%clk 0:00:45.6]} 26. Rd1 {[%clk 0:00:15.9]}
26... Rxc4 {[%clk 0:00:33.7]} 27. Bxd6 {[%clk 0:00:13.5]} 27... Kc8 {[%clk
0:00:28]} 0-1

[Event "*** Titled Tuesday Blitz"]
[Site "Chess.com"]
[Date "2020.11.24"]
[Round "1"]
[White "GM_dmitrij"]
[Black "No_t_ime_to_die"]
[Result "1-0"]
[WhiteElo "2882"]
[BlackElo "2438"]
[TimeControl "180+1"]
[EndTime "10:21:45 PST"]
[Termination "GM_dmitrij won by resignation"]

1. Nf3 {[%clk 0:03:00.9]} 1... Nf6 {[%clk 0:02:58.5]} 2. e3 {[%clk 0:03:00.8]}
2... g6 {[%clk 0:02:57.6]} 3. d4 {[%clk 0:02:58.9]} 3... Bg7 {[%clk 0:02:57.6]}
4. c4 {[%clk 0:02:59.4]} 4... c5 {[%clk 0:02:57]} 5. d5 {[%clk 0:02:59.1]} 5...
b5 {[%clk 0:02:55.7]} 6. cxb5 {[%clk 0:02:54.8]} 6... a6 {[%clk 0:02:54.6]} 7.
Nc3 {[%clk 0:02:55.2]} 7... O-O {[%clk 0:02:54.3]} 8. a4 {[%clk 0:02:55.4]} 8...
e6 {[%clk 0:02:52.2]} 9. bxa6 {[%clk 0:02:46.1]} 9... Bxa6 {[%clk 0:02:45.7]}
10. Bxa6 {[%clk 0:02:45.5]} 10... Nxa6 {[%clk 0:02:46.6]} 11. O-O {[%clk
0:02:43.9]} 11... Nb4 {[%clk 0:02:44.9]} 12. e4 {[%clk 0:02:43]} 12... exd5
{[%clk 0:02:44.8]} 13. e5 {[%clk 0:02:38.3]} 13... Ng4 {[%clk 0:02:44.4]} 14.
Nxd5 {[%clk 0:02:19.2]} 14... Nxe5 {[%clk 0:02:42.4]} 15. Nxb4 {[%clk
0:02:18.2]} 15... cxb4 {[%clk 0:02:42.4]} 16. Rb1 {[%clk 0:02:06.8]} 16... Nxf3+
{[%clk 0:02:38.1]} 17. Qxf3 {[%clk 0:02:07.7]} 17... Rxa4 {[%clk 0:02:37.6]} 18.
Bf4 {[%clk 0:02:02.2]} 18... d5 {[%clk 0:02:26.9]} 19. Rfd1 {[%clk 0:01:54.6]}
19... Ra5 {[%clk 0:02:26.6]} 20. Qg3 {[%clk 0:01:44.5]} 20... Qd7 {[%clk
0:02:21.9]} 21. Bd6 {[%clk 0:01:44.3]} 21... Rc8 {[%clk 0:02:16.6]} 22. Bxb4
{[%clk 0:01:43.4]} 22... Rb5 {[%clk 0:02:17]} 23. Bc3 {[%clk 0:01:41]} 23...
Bxc3 {[%clk 0:02:13.2]} 24. bxc3 {[%clk 0:01:38.4]} 24... Rxb1 {[%clk
0:02:14.1]} 25. Rxb1 {[%clk 0:01:39.3]} 25... Qc6 {[%clk 0:02:13.5]} 26. Rc1
{[%clk 0:01:30.8]} 26... Qc4 {[%clk 0:02:07.6]} 27. Rd1 {[%clk 0:01:14.9]} 27...
Qxc3 {[%clk 0:02:03.9]} 28. Qg4 {[%clk 0:01:15.2]} 28... d4 {[%clk 0:02:00.4]}
29. h4 {[%clk 0:01:13.5]} 29... Rd8 {[%clk 0:01:56.1]} 30. Qg5 {[%clk
0:01:13.8]} 30... Rd7 {[%clk 0:01:50.4]} 31. Qe5 {[%clk 0:01:11.7]} 31... Qc2
{[%clk 0:01:20]} 32. Ra1 {[%clk 0:00:54.8]} 32... Rd8 {[%clk 0:01:12.6]} 33. Qf6
{[%clk 0:00:54.3]} 33... Qc8 {[%clk 0:00:58.1]} 34. h5 {[%clk 0:00:52.3]} 34...
gxh5 {[%clk 0:00:54.3]} 35. g3 {[%clk 0:00:30.3]} 35... d3 {[%clk 0:00:54]} 36.
Ra5 {[%clk 0:00:29.1]} 36... d2 {[%clk 0:00:40.2]} 37. Rg5+ {[%clk 0:00:28.8]}
37... Kf8 {[%clk 0:00:40.7]} 38. Qh6+ {[%clk 0:00:29]} 38... Ke7 {[%clk
0:00:38.2]} 39. Re5+ {[%clk 0:00:29.9]} 39... Kd7 {[%clk 0:00:37.6]} 40. Qxd2+
{[%clk 0:00:29.2]} 40... Kc7 {[%clk 0:00:36.2]} 41. Rc5+ {[%clk 0:00:28.4]}
41... Kb6 {[%clk 0:00:35.9]} 42. Qb4+ {[%clk 0:00:26]} 1-0

[Event "*** Titled Tuesday Blitz"]
[Site "Chess.com"]
[Date "2020.11.24"]
[Round "1"]
[White "HanSchut"]
[Black "Susal_De_Silva"]
[Result "1/2-1/2"]
[WhiteElo "2211"]
[BlackElo "2522"]
[TimeControl "180+1"]
[EndTime "10:21:46 PST"]
[Termination "Game drawn by repetition"]

1. e4 {[%clk 0:03:00.4]} 1... c5 {[%clk 0:02:59.7]} 2. Nf3 {[%clk 0:03:00.3]}
2... d6 {[%clk 0:02:59.9]} 3. d4 {[%clk 0:03:00.6]} 3... cxd4 {[%clk 0:03:00.3]}
4. Nxd4 {[%clk 0:03:01.5]} 4... Nf6 {[%clk 0:03:00.7]} 5. f3 {[%clk 0:03:02.1]}
5... Nc6 {[%clk 0:03:00.3]} 6. c4 {[%clk 0:03:01.8]} 6... e6 {[%clk 0:02:59.4]}
7. Be3 {[%clk 0:03:01.8]} 7... a6 {[%clk 0:02:59.7]} 8. Nc3 {[%clk 0:03:01.2]}
8... Be7 {[%clk 0:03:00]} 9. Rc1 {[%clk 0:03:00.6]} 9... Bd7 {[%clk 0:02:58.4]}
10. Be2 {[%clk 0:03:00.9]} 10... O-O {[%clk 0:02:58.2]} 11. O-O {[%clk 0:03:01]}
11... Rc8 {[%clk 0:02:58.8]} 12. Qd2 {[%clk 0:03:01.2]} 12... Ne5 {[%clk
0:02:47.6]} 13. b3 {[%clk 0:03:00.4]} 13... Re8 {[%clk 0:02:38.1]} 14. Rfd1
{[%clk 0:02:59.8]} 14... Ng6 {[%clk 0:02:12.3]} 15. Bf1 {[%clk 0:02:53.1]} 15...
d5 {[%clk 0:02:00.4]} 16. cxd5 {[%clk 0:02:45.9]} 16... Ba3 {[%clk 0:01:56.2]}
17. Rc2 {[%clk 0:02:36.1]} 17... exd5 {[%clk 0:01:54.2]} 18. Nxd5 {[%clk
0:02:29.5]} 18... Nxd5 {[%clk 0:01:49.3]} 19. exd5 {[%clk 0:02:20.7]} 19... Bc5
{[%clk 0:01:33.1]} 20. Rxc5 {[%clk 0:01:56.3]} 20... Rxc5 {[%clk 0:01:30.3]} 21.
Ne6 {[%clk 0:01:56.6]} 21... Bxe6 {[%clk 0:01:10.9]} 22. Bxc5 {[%clk 0:01:54.9]}
22... Bf5 {[%clk 0:01:11.1]} 23. Qd4 {[%clk 0:01:41.3]} 23... Qd7 {[%clk
0:01:10.9]} 24. g4 {[%clk 0:01:34.9]} 24... Nh4 {[%clk 0:01:01.8]} 25. Qf2
{[%clk 0:01:20.2]} 25... Bxg4 {[%clk 0:01:01.7]} 26. Qxh4 {[%clk 0:01:17.5]}
26... Bxf3 {[%clk 0:01:01.3]} 27. Qg3 {[%clk 0:01:14]} 27... Bxd1 {[%clk
0:00:59.1]} 28. Bd4 {[%clk 0:01:11.6]} 28... g6 {[%clk 0:00:59.3]} 29. Bg2
{[%clk 0:01:09]} 29... Qg4 {[%clk 0:00:53.8]} 30. Qxg4 {[%clk 0:01:07.2]} 30...
Bxg4 {[%clk 0:00:54.7]} 31. d6 {[%clk 0:01:07.8]} 31... Rd8 {[%clk 0:00:51.9]}
32. Be5 {[%clk 0:01:06.5]} 32... b5 {[%clk 0:00:50.9]} 33. Bb7 {[%clk
0:01:04.6]} 33... a5 {[%clk 0:00:50.9]} 34. Bc6 {[%clk 0:01:04.8]} 34... Bd7
{[%clk 0:00:51.2]} 35. Bf6 {[%clk 0:01:01.4]} 35... Bxc6 {[%clk 0:00:41.8]} 36.
Bxd8 {[%clk 0:01:01.7]} 36... a4 {[%clk 0:00:42.7]} 37. bxa4 {[%clk 0:01:00.9]}
37... bxa4 {[%clk 0:00:43.6]} 38. Kf2 {[%clk 0:01:01.4]} 38... Kf8 {[%clk
0:00:43.6]} 39. Be7+ {[%clk 0:01:01.9]} 39... Ke8 {[%clk 0:00:43.9]} 40. h4
{[%clk 0:01:02.6]} 40... Kd7 {[%clk 0:00:42.1]} 41. a3 {[%clk 0:01:03.1]} 41...
Ke6 {[%clk 0:00:40.5]} 42. Ke3 {[%clk 0:01:03.6]} 42... h6 {[%clk 0:00:37.4]}
43. Kf4 {[%clk 0:01:04]} 43... f6 {[%clk 0:00:36.1]} 44. Bf8 {[%clk 0:01:02.6]}
44... g5+ {[%clk 0:00:36.4]} 45. hxg5 {[%clk 0:01:01.7]} 45... hxg5+ {[%clk
0:00:37.3]} 46. Kg4 {[%clk 0:01:02.4]} 46... Kf7 {[%clk 0:00:37.7]} 47. Be7
{[%clk 0:01:02]} 47... Kg6 {[%clk 0:00:37.5]} 48. Kg3 {[%clk 0:00:58.8]} 48...
Bd7 {[%clk 0:00:38.4]} 49. Bd8 {[%clk 0:00:58.4]} 49... Kf5 {[%clk 0:00:38.3]}
50. Be7 {[%clk 0:00:58.4]} 50... Ke6 {[%clk 0:00:38]} 51. Bf8 {[%clk 0:00:57.8]}
51... Bc6 {[%clk 0:00:36.3]} 52. Kg4 {[%clk 0:00:57]} 52... Bd5 {[%clk
0:00:33.7]} 53. Be7 {[%clk 0:00:55.3]} 53... Bc6 {[%clk 0:00:33.7]} 54. Bf8
{[%clk 0:00:54.4]} 1/2-1/2

[Event "*** Titled Tuesday Blitz"]
[Site "Chess.com"]
[Date "2020.11.24"]
[Round "1"]
[White "arjwezhrtdrz"]
[Black "suyu28"]
[Result "1/2-1/2"]
[WhiteElo "2321"]
[BlackElo "2601"]
[TimeControl "180+1"]
[EndTime "10:21:47 PST"]
[Termination "Game drawn by repetition"]

1. e4 {[%clk 0:03:00.4]} 1... c6 {[%clk 0:02:59.6]} 2. d4 {[%clk 0:03:00]} 2...
d5 {[%clk 0:03:00.5]} 3. exd5 {[%clk 0:03:00.6]} 3... cxd5 {[%clk 0:02:58.8]} 4.
Bd3 {[%clk 0:03:01.1]} 4... Nc6 {[%clk 0:02:55.1]} 5. c3 {[%clk 0:03:00.8]} 5...
Nf6 {[%clk 0:02:54.9]} 6. Bf4 {[%clk 0:02:59.7]} 6... Bg4 {[%clk 0:02:53.8]} 7.
Qb3 {[%clk 0:02:59]} 7... Qd7 {[%clk 0:02:54.1]} 8. Nd2 {[%clk 0:02:57.5]} 8...
e6 {[%clk 0:02:54.4]} 9. Ngf3 {[%clk 0:02:57]} 9... Bxf3 {[%clk 0:02:55.1]} 10.
Nxf3 {[%clk 0:02:56.7]} 10... Bd6 {[%clk 0:02:55.5]} 11. Bxd6 {[%clk 0:02:54.9]}
11... Qxd6 {[%clk 0:02:56.4]} 12. O-O {[%clk 0:02:54.1]} 12... Qc7 {[%clk
0:02:47.4]} 13. Rae1 {[%clk 0:02:52.3]} 13... O-O {[%clk 0:02:46.6]} 14. Ne5
{[%clk 0:02:49.5]} 14... Nxe5 {[%clk 0:02:43.6]} 15. Rxe5 {[%clk 0:02:48.9]}
15... Ng4 {[%clk 0:02:41]} 16. Rh5 {[%clk 0:02:45.1]} 16... g6 {[%clk 0:02:38]}
17. Rh4 {[%clk 0:02:38.6]} 17... f5 {[%clk 0:02:34.7]} 18. Re1 {[%clk
0:02:13.8]} 18... Rae8 {[%clk 0:02:28]} 19. f3 {[%clk 0:02:13.8]} 19... Nf6
{[%clk 0:02:24.7]} 20. Qd1 {[%clk 0:02:00.9]} 20... Kg7 {[%clk 0:02:10.6]} 21.
Qd2 {[%clk 0:02:00.4]} 21... e5 {[%clk 0:02:02.9]} 22. Qh6+ {[%clk 0:01:49.7]}
22... Kg8 {[%clk 0:02:01.1]} 23. dxe5 {[%clk 0:01:43.5]} 23... Rxe5 {[%clk
0:02:02]} 24. Rxe5 {[%clk 0:01:40.8]} 24... Qxe5 {[%clk 0:02:02.9]} 25. Qd2
{[%clk 0:01:36.3]} 25... Re8 {[%clk 0:02:01.8]} 26. Rd4 {[%clk 0:01:18.1]} 26...
Kg7 {[%clk 0:01:51.7]} 27. Bf1 {[%clk 0:01:02.2]} 27... Re7 {[%clk 0:01:48.2]}
28. g3 {[%clk 0:00:58]} 28... Qc7 {[%clk 0:01:45.3]} 29. Qf2 {[%clk 0:00:53]}
29... b6 {[%clk 0:01:38.7]} 30. Rd2 {[%clk 0:00:52.9]} 30... Qc5 {[%clk
0:01:35.7]} 31. Re2 {[%clk 0:00:52.2]} 31... Kf7 {[%clk 0:01:20]} 32. Rxe7+
{[%clk 0:00:51.3]} 32... Kxe7 {[%clk 0:01:19.9]} 33. Kg2 {[%clk 0:00:51.3]}
33... Kf7 {[%clk 0:00:48.3]} 34. Qd2 {[%clk 0:00:50.9]} 34... Ne8 {[%clk
0:00:43]} 35. Qh6 {[%clk 0:00:45.5]} 35... Nf6 {[%clk 0:00:43]} 36. Qd2 {[%clk
0:00:44.7]} 36... a5 {[%clk 0:00:39.6]} 37. a3 {[%clk 0:00:43.7]} 37... Ne8
{[%clk 0:00:38.6]} 38. Qh6 {[%clk 0:00:42.8]} 38... Nf6 {[%clk 0:00:39.3]} 39.
Qd2 {[%clk 0:00:42.8]} 39... Ke6 {[%clk 0:00:39.8]} 40. Qe2+ {[%clk 0:00:39]}
40... Kd7 {[%clk 0:00:36.8]} 41. Qd2 {[%clk 0:00:39.1]} 41... Ke7 {[%clk
0:00:32.8]} 42. Qe2+ {[%clk 0:00:38.4]} 42... Kf7 {[%clk 0:00:33.3]} 43. Qd2
{[%clk 0:00:34.4]} 1/2-1/2